bitfinex-derivatives/quotes_BNBF0:USTF0_20250511
["timestamp","ask_amount","ask_price","bid_price","bid_amount"]
[1746979555985,1.96816986,649.79,646.1,0.97355629]
[1746979556189,0.26819362,649.27,646.11,1.17549492]
[1746979556389,1.96816986,649.79,646.12,1.17549492]
[1746979556691,1.96816986,649.79,646.13,1.17549492]
[1746979556886,0.28299329,649.78,646.14,1.17124379]
[1746979557091,0.28299329,649.78,646.1,0.97355629]
[1746979557289,0.55121172,649.78,646.1,0.97355629]
[1746979557487,0.28299329,649.77,646.1,0.97355629]
[1746979557887,0.28299329,649.77,645.87,0.97355629]
[1746979558285,0.26821843,649.78,645.88,1.17353612]
[1746979558587,0.26821843,649.78,645.89,1.17353612]
[1746979558890,0.26821843,649.78,645.88,1.17353612]
[1746979559088,0.28299329,649.77,645.88,1.17353612]
[1746979560693,0.28299329,649.77,645.78,1.17353612]
[1746979562397,0.28299329,649.76,645.78,1.17353612]
[1746979562797,0.28299329,649.75,645.78,1.17353612]
[1746979563192,0.28299329,649.74,645.78,1.17353612]
[1746979563395,0.28299329,649.73,645.78,1.17353612]
[1746979563697,0.28299329,649.77,645.78,1.17353612]
[1746979564698,1.96816986,649.44,646.0,0.97355629]
[1746979567096,1.96816986,649.44,646.01,1.17599149]
[1746979567697,0.26818329,649.43,646.01,1.17599149]
[1746979568500,0.26818329,649.43,646.21,0.97355629]
[1746979569301,0.26818329,649.43,646.22,1.17599149]
[1746979569599,0.26818329,649.43,646.23,1.17599149]
[1746979570097,0.26818329,649.43,646.24,1.17599149]
[1746979570499,0.26818329,649.43,646.25,1.17599149]
[1746979570999,0.26818329,649.43,646.49,0.97355629]
[1746979572796,0.26818329,649.43,646.28,0.97355629]
[1746979573904,0.65067477,650.15,646.28,0.97355629]
[1746979574104,0.28304406,650.14,646.28,0.97355629]
[1746979574402,0.28304406,650.13,646.28,0.97355629]
[1746979574702,0.28304406,650.12,646.28,0.97355629]
[1746979575104,0.26816676,650.11,646.28,0.97355629]
[1746979575299,1.96816986,649.58,646.21,0.97355629]
[1746979577404,1.96816986,649.58,646.22,1.17707657]
[1746979577606,1.96816986,649.72,646.24,0.97355629]
[1746979577902,0.28296035,649.57,646.25,1.17707657]
[1746979578405,0.55113021,649.71,646.25,1.17707657]
[1746979578707,0.26816986,649.71,646.25,1.17707657]
[1746979579407,0.26816986,649.71,646.42,0.30939636]
[1746979579705,0.30790547,649.55,646.42,0.30939636]
[1746979579908,0.30790547,649.55,646.59,0.97355629]
[1746979579909,1.96816986,649.36,646.59,0.97355629]
[1746979582716,0.30790547,649.55,646.6,0.97355629]
[1746979584115,0.26809961,649.54,646.6,0.97355629]
[1746979584912,0.26809961,649.54,646.77,0.97355629]
[1746979585813,0.30790547,649.55,646.77,0.97355629]
[1746979587112,0.26806657,649.54,646.77,0.97355629]
[1746979587409,0.26806657,649.54,646.51,1.24162286]
[1746979587612,0.26806657,649.54,646.52,1.17476083]
[1746979587812,0.26806657,649.54,646.53,1.17475282]
[1746979588012,0.26806657,649.54,646.51,1.24162286]
[1746979588314,0.26806657,649.54,646.52,1.1747037]
[1746979588608,0.26806657,649.54,646.53,1.1747037]
[1746979588811,0.26806657,649.54,646.54,1.1747037]
[1746979589012,0.30790547,649.55,646.55,1.1747037]
[1746979589516,0.30790547,649.55,646.51,0.97355629]
[1746979589815,0.30790547,649.55,646.8,0.97355629]
[1746979590215,0.26804179,649.54,646.8,0.97355629]
[1746979591915,0.30790547,649.55,646.8,0.97355629]
[1746979592212,0.26807173,649.53,646.8,0.97355629]
[1746979592515,0.26807173,649.53,646.63,0.26807173]
[1746979592516,0.26807173,649.53,646.76,0.97355629]
[1746979594912,0.30790547,649.55,646.76,0.97355629]
[1746979595117,0.30790547,649.55,646.42,0.30939636]
[1746979596120,0.2681182,649.54,646.43,0.2681182]
[1746979597914,0.30790547,649.55,646.42,0.30939636]
[1746979598121,0.30790547,649.55,646.54,0.97355629]
[1746979599118,0.26816262,649.54,646.54,0.97355629]
[1746979600323,0.26816262,649.54,646.44,0.97355629]
[1746979602424,0.26816262,649.54,646.47,0.97355629]
[1746979602626,0.26816262,649.54,646.56,1.17691429]
[1746979603523,0.26816262,649.54,646.47,0.97355629]
[1746979603825,0.30790547,649.55,646.47,0.97355629]
[1746979604122,0.26819466,649.53,646.47,0.97355629]
[1746979604625,1.96816986,649.44,646.54,0.97355629]
[1746979606925,1.96816986,649.44,646.45,0.26819466]
[1746979606926,0.26819466,649.53,646.45,0.26819466]
[1746979608525,1.96816986,649.49,646.55,0.97355629]
[1746979610126,0.26817399,649.48,646.55,0.97355629]
[1746979611126,0.26817399,649.48,646.49,0.26817399]
[1746979612628,0.26817399,649.48,646.65,0.97355629]
[1746979612927,1.96816986,649.5,646.65,0.97355629]
[1746979614132,0.26816262,649.49,646.65,0.97355629]
[1746979615433,0.26816262,649.49,646.55,1.24170032]
[1746979615933,0.30790547,649.55,646.55,0.97355629]
[1746979616135,0.30790547,649.55,646.55,1.24173028]
[1746979617233,0.26809858,649.54,646.55,1.24173028]
[1746979618736,0.26809858,649.54,646.56,1.18194828]
[1746979618931,0.30790547,649.55,646.57,1.18194828]
[1746979619336,0.30790547,649.55,646.58,1.18194828]
[1746979619730,0.30790547,649.55,646.59,1.18194828]
[1746979620132,0.26808103,649.54,646.59,1.18194828]
[1746979620332,0.26808103,649.54,646.55,1.24164971]
[1746979621037,0.26808103,649.54,646.56,1.17772269]
[1746979621338,0.26808103,649.54,646.85,0.97355629]
[1746979624038,0.26808103,649.54,647.04,0.97355629]
[1746979626642,0.26808103,649.54,646.92,0.97355629]
[1746979627940,0.30790547,649.55,646.92,0.97355629]
[1746979628240,0.26808619,649.53,646.92,0.97355629]
[1746979628840,0.26808619,649.53,646.79,0.97355629]
[1746979630842,0.30790547,649.55,646.79,0.97355629]
[1746979631142,0.26810168,649.52,646.79,0.97355629]
[1746979631743,0.26810168,649.52,646.74,0.26810168]
[1746979633945,0.30790547,649.55,646.51,0.97355629]
[1746979634143,0.26812233,649.51,646.74,0.26812233]
[1746979634444,0.26812233,649.51,646.55,0.97355629]
[1746979635744,0.26812233,649.51,645.61,1.16826755]
[1746979635745,0.26812233,649.51,646.54,0.97355629]
[1746979636040,0.26812233,649.51,646.56,0.26814093]
[1746979636945,0.30790547,649.55,646.54,0.97355629]
[1746979637140,0.30790547,649.55,646.56,0.26813783]
[1746979637349,0.26813783,649.5,646.56,0.26813783]
[1746979637645,0.26813783,649.5,646.7,0.3092624]
[1746979639950,0.30790547,649.55,646.7,0.3092624]
[1746979640553,0.30790547,649.55,646.87,0.97355629]
[1746979641153,0.26808309,649.54,646.87,0.97355629]
[1746979642855,0.26808309,649.54,646.7,0.3092624]
[1746979642856,0.26808309,649.54,646.94,0.97355629]
[1746979643054,0.30790547,649.55,646.94,0.97355629]
[1746979643354,0.26809961,649.53,646.94,0.97355629]
[1746979644652,0.26809961,649.53,647.06,0.30909034]
[1746979644856,1.96816986,649.49,647.06,0.30909034]
[1746979647361,0.26810065,649.48,647.06,0.30909034]
[1746979648967,1.96816986,649.49,647.06,0.30909034]
[1746979650165,0.26811304,649.48,647.06,0.30909034]
[1746979650364,1.96816986,649.36,647.06,0.30909034]
[1746979652664,1.96816986,649.06,647.06,0.30909034]
[1746979655567,1.96816986,649.2,647.06,0.30909034]
[1746979657766,0.26811304,649.48,647.06,0.30909034]
[1746979657767,1.96816986,649.29,647.06,0.30909034]
[1746979658270,0.26816676,649.28,647.06,0.30909034]
[1746979660975,1.96816986,649.34,647.06,0.30909034]
[1746979662176,0.26814093,649.33,647.06,0.30909034]
[1746979662476,1.96816986,649.17,647.06,0.30909034]
[1746979665476,1.96816986,649.23,647.06,0.30909034]
[1746979667076,1.96816986,649.37,647.06,0.30909034]
[1746979667275,0.2681213,649.28,647.06,0.30909034]
[1746979667477,1.96816986,649.37,647.06,0.30909034]
[1746979668276,0.26811304,649.36,647.06,0.30909034]
[1746979669978,1.96816986,649.41,647.06,0.30909034]
[1746979670173,0.2681275,649.35,647.06,0.30909034]
[1746979672979,1.96816986,649.38,647.06,0.30909034]
[1746979673274,0.26812543,649.34,647.06,0.30909034]
[1746979675980,1.96816986,649.41,647.06,0.30909034]
[1746979676174,0.26812647,649.33,647.06,0.30909034]
[1746979676476,1.96816986,649.41,647.06,0.30909034]
[1746979677379,0.26813473,649.4,647.06,0.30909034]
[1746979678081,1.96816986,649.36,647.06,0.30909034]
[1746979680682,1.96816986,649.21,647.06,0.30909034]
[1746979682280,0.268236,649.2,647.06,0.30909034]
[1746979683486,0.28318663,649.19,647.06,0.30909034]
[1746979684082,0.268236,649.2,647.06,0.30909034]
[1746979685587,0.28321868,649.19,647.06,0.30909034]
[1746979686892,0.268236,649.2,647.06,0.30909034]
[1746979687894,0.30790547,649.55,647.06,0.30909034]
[1746979688093,0.28320424,649.54,647.06,0.30909034]
[1746979688294,1.96816986,649.11,647.06,0.30909034]
[1746979689193,0.26828873,649.1,647.06,0.30909034]
[1746979689699,0.28325343,649.09,647.06,0.30909034]
[1746979690690,0.28325343,649.08,645.94,0.97355629]
[1746979690889,0.28325343,649.07,645.71,0.97355629]
[1746979691094,0.28325343,649.06,646.58,0.26850609]
[1746979691294,0.28325343,649.06,645.71,0.97355629]
[1746979691496,0.28325343,649.09,645.71,0.97355629]
[1746979691692,0.28325343,649.08,645.71,0.97355629]
[1746979691891,0.28325343,649.09,645.71,0.97355629]
[1746979692093,0.28325343,649.09,645.72,0.2685123]
[1746979693289,0.28325343,649.08,645.72,0.2685123]
[1746979693596,0.28325343,649.09,645.72,0.2685123]
[1746979693995,0.28325343,649.09,645.43,0.526]
[1746979694195,0.55182997,649.09,645.72,0.26857654]
[1746979694393,0.26857654,649.09,645.72,0.26857654]
[1746979694591,0.28325343,649.08,645.43,0.526]
[1746979695394,0.28325343,649.07,645.43,0.526]
[1746979695798,0.28325343,649.06,645.43,0.526]
[1746979696093,0.28325343,649.05,645.44,0.26866156]
[1746979696294,0.28325343,649.04,645.44,0.26866156]
[1746979696598,0.28325343,649.08,645.44,0.26866156]
[1746979697497,0.28325343,649.07,645.44,0.26866156]
[1746979697698,0.28325343,649.08,645.44,0.26866156]
[1746979698595,0.28330954,649.07,645.44,0.26866156]
[1746979698893,0.28330954,649.08,645.44,0.26866156]
[1746979700197,0.26857654,649.09,645.44,0.26866156]
[1746979700398,0.28337905,649.08,645.44,0.26866156]
[1746979701494,0.28337905,649.07,645.44,0.26866156]
[1746979701797,0.28337905,649.06,645.44,0.26866156]
[1746979702097,0.28337905,649.05,645.44,0.26866156]
[1746979702495,0.28337905,649.04,645.44,0.26866156]
[1746979702798,0.28337905,649.03,645.44,0.26866156]
[1746979703293,0.28337905,649.02,645.44,0.26866156]
[1746979703598,0.28337905,649.01,645.44,0.26866156]
[1746979704495,0.26865326,649.0,645.44,0.26866156]
[1746979704899,0.28337905,648.99,645.44,0.26866156]
[1746979705193,0.28337905,648.98,645.44,0.26866156]
[1746979705698,0.28337905,648.97,645.58,0.30979894]
[1746979706199,0.55198358,648.96,645.58,0.30979894]
[1746979706596,0.28337905,648.95,645.58,0.30979894]
[1746979707197,0.28337905,648.94,645.58,0.30979894]
[1746979707502,0.28337905,648.93,645.58,0.30979894]
[1746979707804,0.28337905,648.92,645.58,0.30979894]
[1746979708102,0.28337905,648.91,645.58,0.30979894]
[1746979708504,0.28337905,648.95,645.58,0.30979894]
[1746979715311,0.26860453,648.96,645.58,0.30979894]
[1746979716915,0.28333206,648.95,645.58,0.30979894]
[1746979717216,0.26860453,648.96,645.58,0.30979894]
[1746979717617,0.28335113,648.95,645.58,0.30979894]
[1746979720919,1.96816986,649.15,645.58,0.30979894]
[1746979721119,1.96816986,648.74,645.58,0.30979894]
[1746979721820,0.26848641,648.73,645.58,0.30979894]
[1746979723721,0.26848641,648.73,645.73,0.97355629]
[1746979724022,1.96816986,648.98,645.73,0.97355629]
[1746979724321,0.26845638,648.72,645.73,0.97355629]
[1746979724523,1.96816986,648.98,645.73,0.97355629]
[1746979725323,0.26844395,648.97,645.73,0.97355629]
[1746979726924,1.96816986,648.98,645.68,0.97355629]
[1746979727117,1.96816986,649.2,645.68,0.97355629]
[1746979728323,0.26837046,649.19,645.68,0.97355629]
[1746979728922,0.26837046,649.19,645.91,0.97355629]
[1746979729125,0.28316884,649.18,645.91,0.97355629]
[1746979729522,0.26837046,649.19,645.91,0.97355629]
[1746979730120,0.2832459,649.18,645.91,0.97355629]
[1746979731717,0.2832459,649.18,645.66,0.26839012]
[1746979732425,0.2832459,649.18,645.83,0.30967901]
[1746979733025,1.96816986,649.23,645.83,0.30967901]
[1746979733226,0.26841496,649.17,645.83,0.30967901]
[1746979733626,1.96816986,649.15,645.83,0.30967901]
[1746979734722,1.96816986,649.15,645.84,1.16775439]
[1746979735128,1.96816986,649.15,645.85,1.16775439]
[1746979735427,1.96816986,649.15,645.86,1.16775439]
[1746979735629,0.26841496,649.17,645.86,1.16775439]
[1746979735827,0.26841496,649.17,645.84,1.16775439]
[1746979736025,1.96816986,649.54,645.84,1.16775439]
[1746979736229,0.26829391,649.16,645.84,1.16775439]
[1746979736424,1.96816986,649.54,645.84,1.16775439]
[1746979737232,0.26828356,649.53,645.84,1.16775439]
[1746979738732,1.96816986,649.46,646.07,0.97355629]
[1746979739726,0.28308567,649.45,646.07,0.97355629]
[1746979740930,0.28308567,649.45,645.83,0.30967901]
[1746979741128,0.28308567,649.45,645.84,1.17088731]
[1746979741333,0.28308567,649.52,645.85,1.17088731]
[1746979741531,0.28308567,649.52,645.84,1.17088731]
[1746979742032,0.28308567,649.52,645.83,0.30967901]
[1746979742634,0.28308567,649.51,645.83,0.30967901]
[1746979743034,2.25125553,649.51,645.83,0.30967901]
[1746979743234,0.28308567,649.5,645.83,0.30967901]
[1746979743535,0.28308567,649.49,645.83,0.30967901]
[1746979743734,1.96816986,649.51,645.83,0.30967901]
[1746979744135,0.2830849,649.5,645.83,0.30967901]
[1746979744335,0.2830849,649.5,645.84,1.17065026]
[1746979744629,0.2830849,649.5,645.85,1.17065026]
[1746979745029,0.2830849,649.5,645.84,1.17065026]
[1746979745437,0.2830849,649.5,645.85,1.17065026]
[1746979745635,1.96816986,649.43,646.05,0.97355629]
[1746979747537,0.26829184,649.42,646.05,0.97355629]
[1746979747835,0.26829184,649.42,646.02,0.97355629]
[1746979749035,0.28315964,649.41,646.02,0.97355629]
[1746979749637,0.28315964,649.41,646.08,0.97355629]
[1746979753142,1.96816986,649.36,645.89,0.26829184]
[1746979753643,0.28315964,649.35,645.89,0.26829184]
[1746979754544,1.96816986,649.36,645.89,0.26829184]
[1746979754942,0.28326451,649.35,645.89,0.26829184]
[1746979755539,1.96816986,649.3,645.89,0.26829184]
[1746979755844,0.28326451,649.29,645.89,0.26829184]
[1746979756945,0.28326451,649.29,645.83,0.30967901]
[1746979757246,0.26841082,649.28,645.89,0.26841082]
[1746979757645,1.96816986,649.02,645.89,0.26841082]
[1746979758347,0.28330002,649.01,645.89,0.26841082]
[1746979759948,0.28330002,649.01,645.83,0.30967901]
[1746979761149,1.96816986,648.72,645.84,0.26849987]
[1746979763648,0.28340967,648.71,645.84,0.26849987]
[1746979764148,0.28340967,648.84,645.84,0.26849987]
[1746979764650,1.96816986,648.85,645.84,0.26849987]
[1746979765150,0.28349569,648.84,645.84,0.26849987]
[1746979765947,0.28349569,648.84,645.83,0.30967901]
[1746979766251,0.26857136,648.83,645.84,0.26857136]
[1746979766452,0.28349569,648.82,645.84,0.26857136]
[1746979768753,0.28349569,648.81,645.84,0.26857136]
[1746979768951,0.28349569,648.81,645.83,0.30967901]
[1746979769153,0.55210229,648.8,645.83,0.30967901]
[1746979769453,0.28349569,648.79,645.84,0.2686066]
[1746979769752,0.28349569,648.78,645.84,0.2686066]
[1746979770052,0.28349569,648.77,645.84,0.2686066]
[1746979770551,0.28349569,648.79,645.84,0.2686066]
[1746979770852,1.96816986,648.67,645.84,0.2686066]
[1746979771252,0.28349569,648.66,645.84,0.2686066]
[1746979771951,0.28349569,648.66,645.83,0.30967901]
[1746979773256,0.26863667,648.65,645.84,0.26863667]
[1746979774053,0.28349569,648.64,645.84,0.26863667]
[1746979775054,0.28349569,648.64,645.83,0.30967901]
[1746979775259,0.28349569,648.9,645.83,0.30967901]
[1746979775456,1.96816986,648.65,645.83,0.30967901]
[1746979775954,0.28342332,648.64,645.83,0.30967901]
[1746979776155,0.55207347,648.64,645.84,0.26865015]
[1746979776355,0.55207347,648.64,645.96,0.30961669]
[1746979776555,0.28342332,648.63,645.96,0.30961669]
[1746979777053,0.26865015,648.64,645.96,0.30961669]
[1746979777958,1.96816986,648.87,645.96,0.30961669]
[1746979779059,0.26854856,648.86,645.96,0.30961669]
[1746979780959,1.96816986,649.29,645.96,0.30961669]
[1746979781160,0.26844395,648.85,645.96,0.30961669]
[1746979781561,0.28331653,649.28,645.96,0.30961669]
[1746979781756,1.96816986,649.29,645.96,0.30961669]
[1746979782360,0.93476084,649.28,645.96,0.30961669]
[1746979782561,1.96816986,649.29,645.96,0.30961669]
[1746979782861,1.20325257,649.28,645.96,0.30961669]
[1746979783564,0.28338366,649.27,645.96,0.30961669]
[1746979783863,0.28338366,649.26,645.96,0.30961669]
[1746979784258,0.28338366,649.25,645.96,0.30961669]
[1746979784464,0.28338366,649.24,645.96,0.30961669]
[1746979784660,0.28338366,649.23,645.96,0.30961669]
[1746979785063,0.28338366,649.22,645.96,0.30961669]
[1746979785263,0.28338366,649.21,645.96,0.30961669]
[1746979785462,1.96816986,648.64,645.96,0.30961669]
[1746979787268,0.26850505,648.63,645.96,0.30961669]
[1746979788364,0.308404,648.5,645.96,0.30961669]
[1746979790269,0.26851748,648.49,645.96,0.30961669]
[1746979795479,1.96816986,648.47,645.96,0.30961669]
[1746979797478,0.308404,648.5,645.96,0.30961669]
[1746979799783,0.308404,648.5,645.98,0.97355629]
[1746979801279,0.308404,648.5,646.17,0.97355629]
[1746979802884,0.308404,648.5,646.04,0.26831149]
[1746979804988,0.308404,648.5,645.96,0.30961669]
[1746979805189,0.308404,648.5,646.04,0.26823393]
[1746979805486,0.308404,648.5,645.96,0.30961669]
[1746979805691,0.26831356,649.02,645.96,0.30961669]
[1746979806190,0.26831356,649.02,645.97,0.26823187]
[1746979806485,0.30816166,649.01,645.97,0.26823187]
[1746979814002,0.30816166,649.01,645.96,0.30961669]
[1746979814301,0.26839323,649.0,645.97,0.26839323]
[1746979815701,0.28324324,648.99,645.97,0.26839323]
[1746979816001,0.26839323,649.0,645.97,0.26839323]
[1746979816497,0.28323986,648.99,645.97,0.26839323]
[1746979821406,1.96816986,648.95,645.97,0.26839323]
[1746979823106,1.96816986,648.97,645.97,0.26839323]
[1746979823501,0.28326153,648.96,645.97,0.26839323]
[1746979823805,1.96816986,648.97,645.97,0.26839323]
[1746979826008,1.96816986,648.97,645.96,0.30961669]
[1746979826308,0.30816166,649.01,645.96,0.30961669]
[1746979826508,0.26838598,648.96,645.97,0.26838598]
[1746979828311,0.26838598,648.96,646.12,0.97355629]
[1746979829011,0.30816166,649.01,646.12,0.97355629]
[1746979830310,0.26833011,649.0,646.2,0.97355629]
[1746979831612,0.26833011,649.0,646.34,0.30943466]
[1746979833911,0.30816166,649.01,646.34,0.30943466]
[1746979834912,0.30816166,649.01,646.38,0.97355629]
[1746979836916,0.30816166,649.01,646.41,0.97355629]
[1746979839619,0.30816166,649.01,646.38,0.97355629]
[1746979841821,0.30816166,649.01,646.34,0.30943466]
[1746979844626,0.30816166,649.01,646.45,0.97355629]
[1746979847025,0.30816166,649.01,646.34,0.30943466]
[1746979847324,0.30816166,649.01,646.37,0.26817812]
[1746979848222,0.30816166,649.01,646.5,0.30935808]
[1746979854239,1.96816986,650.14,646.5,0.30935808]
[1746979854440,1.96816986,650.03,646.5,1.28291437]
[1746979854638,0.30773965,649.9,646.5,1.28291437]
[1746979856444,0.30773965,649.9,646.53,0.97355629]
[1746979856839,0.26780973,649.89,646.53,0.97355629]
[1746979859147,0.26780973,649.89,646.5,0.30935808]
[1746979859148,0.26780973,649.89,646.77,0.97355629]
[1746979861950,0.26780973,649.89,646.85,0.97355629]
[1746979862151,0.30773965,649.9,646.85,0.97355629]
[1746979862350,0.26800567,649.88,646.85,0.97355629]
[1746979863452,0.26800567,649.88,646.81,0.97355629]
[1746979865051,0.30773965,649.9,646.81,0.97355629]
[1746979865248,0.26797884,649.87,646.81,0.97355629]
[1746979868057,0.30773965,649.9,646.81,0.97355629]
[1746979868451,0.26802218,649.86,646.81,0.97355629]
[1746979868954,0.26802218,649.86,646.75,0.97355629]
[1746979873959,0.30773965,649.9,646.75,0.97355629]
[1746979874162,0.30773965,649.9,646.78,0.97355629]
[1746979874462,0.26803457,649.85,646.78,0.97355629]
[1746979875355,0.28283889,649.84,646.78,0.97355629]
[1746979876058,0.26803457,649.85,646.78,0.97355629]
[1746979876255,1.96816986,649.72,646.83,0.97355629]
[1746979877462,0.26805521,649.71,646.83,0.97355629]
[1746979878063,0.26805521,649.71,646.78,0.26805521]
[1746979879660,0.26805521,649.71,646.92,0.30915723]
[1746979880060,1.96816986,649.89,646.92,0.30915723]
[1746979880361,0.2680325,649.7,646.92,0.30915723]
[1746979880561,1.96816986,649.89,646.92,0.30915723]
[1746979881365,0.26802631,649.88,646.92,0.30915723]
[1746979883161,1.96816986,649.89,646.92,0.30915723]
[1746979883355,0.26802631,649.87,646.92,0.30915723]
[1746979884363,0.28287087,649.86,646.92,0.30915723]
[1746979884962,0.26802631,649.87,646.92,0.30915723]
[1746979885262,0.26802631,649.87,646.95,0.97355629]
[1746979885263,1.96816986,649.74,646.95,0.97355629]
[1746979887267,0.26805521,649.73,646.95,0.97355629]
[1746979887968,1.96816986,649.52,647.04,0.97355629]
[1746979890670,1.96816986,649.51,647.05,0.97355629]
[1746979892774,0.26805521,649.73,647.17,0.97355629]
[1746979895174,0.26805521,649.73,647.24,0.97355629]
[1746979896675,0.26805521,649.73,647.36,0.3089471]
[1746979898073,0.30773965,649.9,647.36,0.3089471]
[1746979899377,0.26792313,649.89,647.36,0.3089471]
[1746979900474,0.30775385,649.87,647.36,0.3089471]
[1746979902281,0.2679252,649.86,647.36,0.3089471]
[1746979904084,0.30775385,649.87,647.36,0.3089471]
[1746979905284,0.26795098,649.86,647.36,0.3089471]
[1746979907086,0.30775385,649.87,647.36,0.3089471]
[1746979908286,0.26796749,649.86,647.36,0.3089471]
[1746979908489,1.96816986,649.8,647.36,0.3089471]
[1746979910292,0.30775385,649.87,647.36,0.3089471]
[1746979911493,0.26797884,649.86,647.36,0.3089471]
[1746979924701,1.96816986,649.79,647.36,0.3089471]
[1746979924901,0.30780122,649.77,647.36,0.3089471]
[1746979926301,0.26797574,649.76,647.36,0.3089471]
[1746979928106,2.27597108,649.77,647.36,0.3089471]
[1746979929006,1.96816986,649.45,647.36,0.3089471]
[1746979930410,0.30795762,649.44,647.36,0.3089471]
[1746979932012,0.26803457,649.43,647.36,0.3089471]
[1746979932609,0.3079671,649.42,647.36,0.3089471]
[1746979934309,0.26803973,649.41,647.36,0.3089471]
[1746979937016,0.3079671,649.42,647.36,0.3089471]
[1746979937506,0.26805521,649.41,647.36,0.3089471]
[1746979940114,0.3079671,649.42,647.36,0.3089471]
[1746979941317,0.26801186,649.41,647.36,0.3089471]
[1746979943120,0.3079671,649.42,647.36,0.3089471]
[1746979944312,1.96816986,649.26,647.36,0.3089471]
[1746979947319,0.26816056,649.25,647.36,0.3089471]
[1746979950718,2.23633042,649.25,647.36,0.3089471]
[1746979953524,0.26816056,649.25,647.36,0.3089471]
[1746979955028,0.3079671,649.42,647.36,0.3089471]
[1746979955825,0.26817192,649.41,647.36,0.3089471]
[1746979958126,0.3079671,649.42,647.36,0.3089471]
[1746979958326,0.26810684,649.4,647.36,0.3089471]
[1746979961129,0.3079671,649.42,647.36,0.3089471]
[1746979962334,0.26812647,649.41,647.36,0.3089471]
[1746979964130,0.3079671,649.42,647.36,0.3089471]
[1746979964634,0.26807586,649.4,647.36,0.3089471]
[1746979965431,0.30798607,649.38,647.36,0.3089471]
[1746979967639,0.26807793,649.37,647.36,0.3089471]
[1746979967840,0.3080003,649.35,647.36,0.3089471]
[1746979970442,0.26808103,649.34,647.36,0.3089471]
[1746979973145,0.3080003,649.35,647.36,0.3089471]
[1746979974447,0.26814403,649.34,647.36,0.3089471]
[1746979976149,0.3080003,649.35,647.36,0.3089471]
[1746979977049,1.96816986,649.01,647.36,0.3089471]
[1746979980051,1.96816986,649.08,647.36,0.3089471]
[1746979981448,0.26816676,649.07,647.36,0.3089471]
[1746979985255,1.96816986,649.21,647.36,0.3089471]
[1746979985451,0.26816986,649.06,647.36,0.3089471]
[1746979985651,1.96816986,649.21,647.36,0.3089471]
[1746979986454,0.26816986,649.2,647.36,0.3089471]
[1746979986954,1.96816986,649.0,647.36,0.3089471]
[1746979989351,0.26830011,648.99,647.36,0.3089471]
[1746979994056,0.30808096,649.18,647.36,0.3089471]
[1746979994359,0.30818065,648.97,647.36,0.3089471]
[1746979995857,0.26816366,648.96,647.36,0.3089471]
[1746979997158,0.30818065,648.97,647.36,0.3089471]
[1746979997359,0.26820913,648.95,647.36,0.3089471]
[1746979997963,0.30819965,648.93,647.36,0.3089471]
[1746980076236,1.96816986,649.8,647.1,0.97355629]
[1746980076436,1.96816986,649.8,646.7,0.97355629]
[1746980076437,1.96816986,649.85,647.35,0.26799019]
[1746980076636,0.26799019,649.56,647.35,0.26799019]
[1746980076837,1.96816986,649.85,647.07,0.97355629]
[1746980077838,1.96816986,649.85,647.08,0.2679582]
[1746980078038,0.2679582,649.84,647.08,0.2679582]
[1746980079040,1.96816986,649.69,647.28,0.97355629]
[1746980081837,0.26794995,649.72,647.4,0.30892801]
[1746980084240,1.96816986,650.28,647.4,0.30892801]
[1746980084439,0.30756927,650.26,647.4,0.30892801]
[1746980084639,0.26790148,649.72,647.4,0.30892801]
[1746980084835,0.30756927,650.26,647.4,0.30892801]
[1746980085640,0.26789117,650.25,647.4,0.30892801]
[1746980087142,0.30756927,650.26,647.4,0.30892801]
[1746980087443,0.26791798,650.24,647.4,0.30892801]
[1746980088446,0.28278018,650.23,647.4,0.30892801]
[1746980090446,0.26790148,650.22,647.4,0.30892801]
[1746980091151,1.96816986,650.0,647.4,0.30892801]
[1746980093051,0.26790148,650.22,647.4,0.30892801]
[1746980093248,0.30756927,650.26,647.4,0.30892801]
[1746980094450,0.26786642,650.25,647.4,0.30892801]
[1746980095951,0.28272031,650.24,647.4,0.30892801]
[1746980096451,0.26789529,650.23,647.4,0.30892801]
[1746980096950,0.28272031,650.22,647.4,0.30892801]
[1746980097447,1.96816986,650.05,647.4,0.30892801]
[1746980099554,1.96816986,650.0,647.4,0.30892801]
[1746980101351,0.30770177,649.98,647.4,0.30892801]
[1746980101749,0.26791591,649.97,647.4,0.30892801]
[1746980108158,0.30770177,649.98,647.4,0.30892801]
[1746980108559,1.96816986,649.86,647.41,0.97355629]
[1746980109460,0.26793345,649.85,647.41,0.97355629]
[1746980111258,1.96816986,649.86,647.41,0.97355629]
[1746980111663,1.96816986,649.46,647.52,0.97355629]
[1746980113461,1.96816986,649.47,647.4,0.57688106]
[1746980114163,1.96816986,649.47,647.4,0.30892801]
[1746980115363,1.96816986,649.47,647.4,0.57693781]
[1746980115861,1.96816986,649.49,647.4,0.57693781]
[1746980117165,1.96816986,649.49,647.4,0.30892801]
[1746980117462,1.96816986,649.49,647.4,0.57692749]
[1746980118063,1.96816986,649.55,647.4,0.57692749]
[1746980120164,1.96816986,649.55,647.4,0.30892801]
[1746980121263,1.96816986,649.55,647.4,0.5769182]
[1746980122369,0.26798813,649.61,647.4,0.5769182]
[1746980126168,1.96816986,649.62,647.4,0.30892801]
[1746980126468,0.26802218,649.6,647.4,0.57695019]